[Event "Late-Titled-Tuesday-Blitz-January-30-2024"]
[Site "Chess.com"]
[Date "2024.01.30"]
[Round "7"]
[White "jup1978"]
[Black "mightysmasher"]
[Result "0-1"]
[WhiteElo "2434"]
[BlackElo "2560"]
[TimeControl "180+1"]
[EndTime "15:17:51 PST"]
[Termination "mightysmasher won on time"]

1. d4 {[%clk 0:02:55.1]} 1... d5 {[%clk 0:02:37]} 2. Nf3 {[%clk 0:02:53.5]} 2...
Nf6 {[%clk 0:02:36.6]} 3. c4 {[%clk 0:02:53.9]} 3... e6 {[%clk 0:02:36]} 4. g3
{[%clk 0:02:54.1]} 4... Be7 {[%clk 0:02:36.1]} 5. Bg2 {[%clk 0:02:54.6]} 5...
O-O {[%clk 0:02:36.4]} 6. O-O {[%clk 0:02:55.2]} 6... b6 {[%clk 0:02:36.8]} 7.
cxd5 {[%clk 0:02:54.1]} 7... exd5 {[%clk 0:02:36.7]} 8. Nc3 {[%clk 0:02:53.9]}
8... Bb7 {[%clk 0:02:36.7]} 9. Bf4 {[%clk 0:02:54.3]} 9... Nbd7 {[%clk
0:02:36.3]} 10. Rc1 {[%clk 0:02:48.3]} 10... c6 {[%clk 0:02:35.9]} 11. Re1
{[%clk 0:02:43.7]} 11... Re8 {[%clk 0:02:35.3]} 12. Ne5 {[%clk 0:02:43.6]} 12...
Nxe5 {[%clk 0:02:34.8]} 13. Bxe5 {[%clk 0:02:35]} 13... Ng4 {[%clk 0:02:29]} 14.
Bf4 {[%clk 0:02:32.1]} 14... Bg5 {[%clk 0:02:26.4]} 15. Qd2 {[%clk 0:02:27.5]}
15... Bxf4 {[%clk 0:02:23.3]} 16. Qxf4 {[%clk 0:02:28.4]} 16... Nf6 {[%clk
0:02:22.1]} 17. e4 {[%clk 0:02:19.7]} 17... dxe4 {[%clk 0:02:21.5]} 18. Nxe4
{[%clk 0:02:20.6]} 18... Nxe4 {[%clk 0:02:21]} 19. Rxe4 {[%clk 0:02:16.4]} 19...
Qd7 {[%clk 0:02:12.3]} 20. Rce1 {[%clk 0:01:59.2]} 20... Rxe4 {[%clk 0:02:10.8]}
21. Qxe4 {[%clk 0:01:59.6]} 21... g6 {[%clk 0:02:01.5]} 22. Qe7 {[%clk 0:01:33]}
22... Rd8 {[%clk 0:01:47.7]} 23. h4 {[%clk 0:01:30.9]} 23... Ba6 {[%clk
0:01:35]} 24. Bxc6 {[%clk 0:01:19.3]} 24... Qxe7 {[%clk 0:01:29.2]} 25. Rxe7
{[%clk 0:01:20.2]} 25... Rxd4 {[%clk 0:01:28.6]} 26. Rxa7 {[%clk 0:01:19.4]}
26... Rd1+ {[%clk 0:01:28]} 27. Kg2 {[%clk 0:01:18.8]} 27... Bf1+ {[%clk
0:01:27.5]} 28. Kf3 {[%clk 0:00:57]} 28... Rd3+ {[%clk 0:01:23.8]} 29. Ke4
{[%clk 0:00:53.5]} 29... Rd2 {[%clk 0:01:21]} 30. b4 {[%clk 0:00:33.7]} 30...
Rxf2 {[%clk 0:01:11.9]} 31. Ke5 {[%clk 0:00:26.5]} 31... Rf5+ {[%clk 0:01:09.1]}
32. Kd6 {[%clk 0:00:24.4]} 32... b5 {[%clk 0:00:57.9]} 33. Bd5 {[%clk
0:00:20.2]} 33... Kg7 {[%clk 0:00:52.1]} 34. g4 {[%clk 0:00:16.8]} 34... Rf6+
{[%clk 0:00:49.9]} 35. Ke5 {[%clk 0:00:16]} 35... h6 {[%clk 0:00:48.5]} 36. Rb7
{[%clk 0:00:12.5]} 36... g5 {[%clk 0:00:43.8]} 37. hxg5 {[%clk 0:00:12.1]} 37...
hxg5 {[%clk 0:00:43.7]} 38. Be4 {[%clk 0:00:10.6]} 38... Rf4 {[%clk 0:00:39.9]}
39. Bf5 {[%clk 0:00:09.6]} 39... Rxb4 {[%clk 0:00:33.1]} 40. Be6 {[%clk
0:00:09.7]} 40... Rf4 {[%clk 0:00:27.8]} 41. Bf5 {[%clk 0:00:08.4]} 41... b4
{[%clk 0:00:22]} 42. Rb6 {[%clk 0:00:02.6]} 42... Rf2 {[%clk 0:00:17.1]} 43.
Rxb4 {[%clk 0:00:01.2]} 43... Re2+ {[%clk 0:00:16.6]} 0-1

[Event "Late-Titled-Tuesday-Blitz-January-30-2024"]
[Site "Chess.com"]
[Date "2024.01.30"]
[Round "7"]
[White "Hui_Li_Macau"]
[Black "Practical-Play"]
[Result "1-0"]
[WhiteElo "2369"]
[BlackElo "2608"]
[TimeControl "180+1"]
[EndTime "15:17:53 PST"]
[Termination "Hui_Li_Macau won by checkmate"]

1. e4 {[%clk 0:03:00.9]} 1... d5 {[%clk 0:02:59.1]} 2. exd5 {[%clk 0:02:58.7]}
2... Nf6 {[%clk 0:02:58.1]} 3. Nf3 {[%clk 0:02:55.6]} 3... Qxd5 {[%clk
0:02:56.2]} 4. Nc3 {[%clk 0:02:53.2]} 4... Qd6 {[%clk 0:02:55.2]} 5. d4 {[%clk
0:02:52.6]} 5... Bg4 {[%clk 0:02:52]} 6. h3 {[%clk 0:02:51.4]} 6... Bh5 {[%clk
0:02:50.4]} 7. g4 {[%clk 0:02:49.3]} 7... Bg6 {[%clk 0:02:49.7]} 8. Ne5 {[%clk
0:02:49.3]} 8... Nc6 {[%clk 0:02:43.2]} 9. f4 {[%clk 0:02:07.5]} 9... Nxd4
{[%clk 0:02:29.9]} 10. Bd3 {[%clk 0:01:39.3]} 10... e6 {[%clk 0:02:14.3]} 11.
Be3 {[%clk 0:01:36.3]} 11... Nc6 {[%clk 0:01:54.6]} 12. Nxc6 {[%clk 0:01:27.2]}
12... Bxd3 {[%clk 0:01:47.1]} 13. Qxd3 {[%clk 0:01:20.2]} 13... Qxc6 {[%clk
0:01:45.6]} 14. O-O-O {[%clk 0:01:15]} 14... Bb4 {[%clk 0:01:39.8]} 15. Qb5
{[%clk 0:01:06.3]} 15... Bxc3 {[%clk 0:01:30.1]} 16. Qxc6+ {[%clk 0:01:06.3]}
16... bxc6 {[%clk 0:01:31]} 17. bxc3 {[%clk 0:01:07.2]} 17... Nd5 {[%clk
0:01:25.8]} 18. Bd4 {[%clk 0:00:53.2]} 18... O-O {[%clk 0:01:19.8]} 19. f5
{[%clk 0:00:45.8]} 19... Rfe8 {[%clk 0:01:12.5]} 20. c4 {[%clk 0:00:44.9]} 20...
Nb6 {[%clk 0:01:06.7]} 21. Bxb6 {[%clk 0:00:09.2]} 21... axb6 {[%clk 0:01:04.8]}
22. Kb2 {[%clk 0:00:07.7]} 22... exf5 {[%clk 0:00:56.4]} 23. gxf5 {[%clk
0:00:07.7]} 23... Re4 {[%clk 0:00:53.9]} 24. Rd7 {[%clk 0:00:06.9]} 24... Rxc4
{[%clk 0:00:52.3]} 25. Rxc7 {[%clk 0:00:07]} 25... h6 {[%clk 0:00:42.8]} 26. f6
{[%clk 0:00:06.2]} 26... gxf6 {[%clk 0:00:39]} 27. Rg1+ {[%clk 0:00:06.4]} 27...
Kf8 {[%clk 0:00:38.5]} 28. Rf1 {[%clk 0:00:06.7]} 28... Rb4+ {[%clk 0:00:14.9]}
29. Kc3 {[%clk 0:00:06.7]} 29... Rh4 {[%clk 0:00:14.8]} 30. Rxf6 {[%clk
0:00:06.4]} 30... Rxh3+ {[%clk 0:00:15.3]} 31. Kb2 {[%clk 0:00:06.4]} 31... b5
{[%clk 0:00:10.1]} 32. Rfxf7+ {[%clk 0:00:06.4]} 32... Ke8 {[%clk 0:00:09.9]}
33. Rfe7+ {[%clk 0:00:06.8]} 33... Kf8 {[%clk 0:00:09.6]} 34. Rf7+ {[%clk
0:00:07.1]} 34... Ke8 {[%clk 0:00:09]} 35. Rh7 {[%clk 0:00:07.2]} 35... Rf3
{[%clk 0:00:07.8]} 36. Rh8+ {[%clk 0:00:04.5]} 36... Rf8 {[%clk 0:00:06.9]} 37.
Rxh6 {[%clk 0:00:04.8]} 37... Rd8 {[%clk 0:00:04.1]} 38. Re6# {[%clk 0:00:04.5]}
1-0

[Event "Late-Titled-Tuesday-Blitz-January-30-2024"]
[Site "Chess.com"]
[Date "2024.01.30"]
[Round "7"]
[White "protectiago"]
[Black "BebeBonito2022"]
[Result "0-1"]
[WhiteElo "2061"]
[BlackElo "2331"]
[TimeControl "180+1"]
[EndTime "15:17:54 PST"]
[Termination "BebeBonito2022 won on time"]

1. d4 {[%clk 0:03:00.9]} 1... Nf6 {[%clk 0:02:59.8]} 2. c4 {[%clk 0:02:59.8]}
2... e6 {[%clk 0:03:00.1]} 3. g3 {[%clk 0:02:58.6]} 3... d5 {[%clk 0:02:59.3]}
4. Nf3 {[%clk 0:02:55]} 4... Bb4+ {[%clk 0:02:59.1]} 5. Bd2 {[%clk 0:02:54.8]}
5... Bd6 {[%clk 0:02:59]} 6. Nc3 {[%clk 0:02:49.2]} 6... O-O {[%clk 0:02:52.4]}
7. Qc2 {[%clk 0:02:29.8]} 7... c6 {[%clk 0:02:52.1]} 8. Bg5 {[%clk 0:02:21.8]}
8... Nbd7 {[%clk 0:02:50.8]} 9. Bg2 {[%clk 0:02:12.7]} 9... h6 {[%clk 0:02:51]}
10. Bxf6 {[%clk 0:02:11.8]} 10... Nxf6 {[%clk 0:02:51.4]} 11. O-O {[%clk
0:02:08.8]} 11... dxc4 {[%clk 0:02:35]} 12. e4 {[%clk 0:02:07.9]} 12... Be7
{[%clk 0:02:35.6]} 13. Rfd1 {[%clk 0:01:49.2]} 13... Rb8 {[%clk 0:02:21.9]} 14.
Ne5 {[%clk 0:01:43.8]} 14... Nd7 {[%clk 0:02:12.9]} 15. Nxc4 {[%clk 0:01:42.2]}
15... b5 {[%clk 0:02:09.2]} 16. Ne3 {[%clk 0:01:36.4]} 16... Qb6 {[%clk
0:01:48.3]} 17. d5 {[%clk 0:00:55.5]} 17... c5 {[%clk 0:01:27]} 18. dxe6 {[%clk
0:00:50.5]} 18... fxe6 {[%clk 0:01:26.3]} 19. Ne2 {[%clk 0:00:29.3]} 19... Bg5
{[%clk 0:01:09.3]} 20. f4 {[%clk 0:00:25.5]} 20... Be7 {[%clk 0:01:06.4]} 21.
Kh1 {[%clk 0:00:22.8]} 21... c4 {[%clk 0:01:05.7]} 22. Nf1 {[%clk 0:00:19.9]}
22... Nc5 {[%clk 0:01:05.6]} 23. Nd4 {[%clk 0:00:18.6]} 23... Bb7 {[%clk
0:00:58]} 24. e5 {[%clk 0:00:15.4]} 24... Nd3 {[%clk 0:00:54.4]} 25. Bxb7 {[%clk
0:00:13.6]} 25... Qxb7+ {[%clk 0:00:53.4]} 26. Qg2 {[%clk 0:00:13.5]} 26...
Qxg2+ {[%clk 0:00:46]} 27. Kxg2 {[%clk 0:00:13.3]} 27... Nxb2 {[%clk 0:00:46.7]}
28. Re1 {[%clk 0:00:12.3]} 28... Nd3 {[%clk 0:00:46.4]} 29. Re3 {[%clk
0:00:11.7]} 29... Bc5 {[%clk 0:00:46]} 30. Re4 {[%clk 0:00:11.3]} 30... Rfd8
{[%clk 0:00:42.2]} 31. Nxe6 {[%clk 0:00:11.2]} 31... Rdc8 {[%clk 0:00:40.5]} 32.
Nxc5 {[%clk 0:00:11.2]} 32... Nxc5 {[%clk 0:00:40.1]} 33. Ree1 {[%clk
0:00:10.2]} 33... b4 {[%clk 0:00:40.4]} 34. Ne3 {[%clk 0:00:10.3]} 34... Nd3
{[%clk 0:00:39.9]} 35. Re2 {[%clk 0:00:09.4]} 35... c3 {[%clk 0:00:39.5]} 36.
Nc2 {[%clk 0:00:09.6]} 36... a5 {[%clk 0:00:38.9]} 37. Rd1 {[%clk 0:00:09.6]}
37... Rd8 {[%clk 0:00:36.4]} 38. e6 {[%clk 0:00:09.4]} 38... Nxf4+ {[%clk
0:00:36.1]} 39. gxf4 {[%clk 0:00:09]} 39... Rxd1 {[%clk 0:00:36.3]} 40. e7
{[%clk 0:00:08.6]} 40... Rd2 {[%clk 0:00:34.5]} 41. Kf1 {[%clk 0:00:06.8]} 41...
Re8 {[%clk 0:00:21.4]} 42. Ne3 {[%clk 0:00:01.8]} 42... Rxe7 {[%clk 0:00:17.8]}
43. Rxd2 {[%clk 0:00:01.7]} 43... cxd2 {[%clk 0:00:18.3]} 0-1

[Event "Late-Titled-Tuesday-Blitz-January-30-2024"]
[Site "Chess.com"]
[Date "2024.01.30"]
[Round "7"]
[White "valeriocarnicelli"]
[Black "RCone"]
[Result "1-0"]
[WhiteElo "2540"]
[BlackElo "2331"]
[TimeControl "180+1"]
[EndTime "15:17:56 PST"]
[Termination "valeriocarnicelli won on time"]

1. b3 {[%clk 0:03:00.9]} 1... d6 {[%clk 0:02:58.7]} 2. Bb2 {[%clk 0:03:00.8]}
2... Nd7 {[%clk 0:02:59.6]} 3. e3 {[%clk 0:03:00.2]} 3... e5 {[%clk 0:03:00.1]}
4. Nf3 {[%clk 0:03:00.6]} 4... Ngf6 {[%clk 0:03:00.3]} 5. c4 {[%clk 0:03:00.6]}
5... g6 {[%clk 0:02:59.8]} 6. d3 {[%clk 0:02:58.3]} 6... Bg7 {[%clk 0:02:59.4]}
7. Be2 {[%clk 0:02:58.7]} 7... O-O {[%clk 0:02:59.7]} 8. O-O {[%clk 0:02:58.5]}
8... a5 {[%clk 0:02:57.4]} 9. Nbd2 {[%clk 0:02:58.1]} 9... h6 {[%clk 0:02:55.5]}
10. a3 {[%clk 0:02:58.4]} 10... g5 {[%clk 0:02:55.1]} 11. b4 {[%clk 0:02:58.3]}
11... Re8 {[%clk 0:02:43.9]} 12. Qc2 {[%clk 0:02:57.7]} 12... Nf8 {[%clk
0:02:41.9]} 13. Ne4 {[%clk 0:02:47.7]} 13... Ng6 {[%clk 0:02:36.6]} 14. Nfd2
{[%clk 0:02:45.9]} 14... Nh7 {[%clk 0:02:33.8]} 15. Nc3 {[%clk 0:02:40.2]} 15...
f5 {[%clk 0:02:31.6]} 16. Bh5 {[%clk 0:02:39.8]} 16... Nhf8 {[%clk 0:02:21]} 17.
e4 {[%clk 0:02:22.4]} 17... f4 {[%clk 0:02:15.2]} 18. f3 {[%clk 0:02:19.5]}
18... Re6 {[%clk 0:02:06.7]} 19. Ne2 {[%clk 0:02:13.6]} 19... Re7 {[%clk
0:01:53.4]} 20. d4 {[%clk 0:02:12.8]} 20... Be6 {[%clk 0:01:40.9]} 21. d5 {[%clk
0:02:12]} 21... Bf7 {[%clk 0:01:40.7]} 22. c5 {[%clk 0:02:11.7]} 22... Nh7
{[%clk 0:01:34.9]} 23. Nc4 {[%clk 0:01:53.4]} 23... Nf6 {[%clk 0:01:34.4]} 24.
Bxg6 {[%clk 0:01:53.1]} 24... Bxg6 {[%clk 0:01:35.3]} 25. Nxa5 {[%clk 0:01:53]}
25... Rxa5 {[%clk 0:01:29.9]} 26. bxa5 {[%clk 0:01:52.9]} 26... g4 {[%clk
0:01:29.9]} 27. Rac1 {[%clk 0:01:37.3]} 27... Bf8 {[%clk 0:01:22.5]} 28. c6
{[%clk 0:01:34.9]} 28... bxc6 {[%clk 0:01:19.3]} 29. Qxc6 {[%clk 0:01:33.3]}
29... Be8 {[%clk 0:01:15.8]} 30. Qb7 {[%clk 0:01:09.4]} 30... Rg7 {[%clk
0:01:15.7]} 31. Kh1 {[%clk 0:01:02.1]} 31... c5 {[%clk 0:01:08.1]} 32. Qb6
{[%clk 0:00:59.4]} 32... Qd7 {[%clk 0:00:39.9]} 33. Bxe5 {[%clk 0:00:51.1]}
33... gxf3 {[%clk 0:00:31.8]} 34. gxf3 {[%clk 0:00:52]} 34... Qh3 {[%clk
0:00:22.2]} 35. Rf2 {[%clk 0:00:52.3]} 35... Ng4 {[%clk 0:00:12.1]} 36. fxg4
{[%clk 0:00:43]} 36... dxe5 {[%clk 0:00:12.8]} 37. Qe6+ {[%clk 0:00:37.6]} 37...
Bf7 {[%clk 0:00:12.3]} 38. Qxe5 {[%clk 0:00:35.9]} 38... Rxg4 {[%clk 0:00:10.6]}
39. Rg1 {[%clk 0:00:31.5]} 39... Bg7 {[%clk 0:00:05.9]} 40. Rxg4 {[%clk
0:00:24.3]} 40... Qxg4 {[%clk 0:00:06.8]} 41. Qxf4 {[%clk 0:00:24.2]} 41... Qxf4
{[%clk 0:00:01.2]} 42. Rxf4 {[%clk 0:00:23.4]} 42... Be5 {[%clk 0:00:02.1]} 43.
a6 {[%clk 0:00:20.8]} 43... Bxf4 {[%clk 0:00:01.9]} 44. Nxf4 {[%clk 0:00:20.8]}
44... c4 {[%clk 0:00:02.2]} 45. a7 {[%clk 0:00:21.2]} 45... c3 {[%clk
0:00:02.9]} 46. a8=Q+ {[%clk 0:00:21.6]} 46... Kg7 {[%clk 0:00:02]} 47. Qc6
{[%clk 0:00:21.4]} 47... Bxd5 {[%clk 0:00:01.1]} 48. exd5 {[%clk 0:00:20.8]}
48... c2 {[%clk 0:00:01.1]} 49. Qxc2 {[%clk 0:00:20.9]} 1-0

[Event "Late-Titled-Tuesday-Blitz-January-30-2024"]
[Site "Chess.com"]
[Date "2024.01.30"]
[Round "7"]
[White "Witik"]
[Black "MikaelyanArman"]
[Result "1-0"]
[WhiteElo "2671"]
[BlackElo "2842"]
[TimeControl "180+1"]
[EndTime "15:17:58 PST"]
[Termination "Witik won on time"]

1. d4 {[%clk 0:02:59.7]} 1... Nf6 {[%clk 0:02:59.9]} 2. c4 {[%clk 0:02:59.9]}
2... g6 {[%clk 0:02:59.6]} 3. g3 {[%clk 0:03:00.4]} 3... Bg7 {[%clk 0:02:59.9]}
4. Bg2 {[%clk 0:03:01]} 4... O-O {[%clk 0:03:00.5]} 5. Nc3 {[%clk 0:03:01.4]}
5... d6 {[%clk 0:03:00.6]} 6. Nf3 {[%clk 0:03:01.9]} 6... Nbd7 {[%clk
0:02:59.8]} 7. O-O {[%clk 0:03:02]} 7... e5 {[%clk 0:03:00.4]} 8. e4 {[%clk
0:03:02.5]} 8... exd4 {[%clk 0:03:00.6]} 9. Nxd4 {[%clk 0:03:02.6]} 9... Re8
{[%clk 0:03:01.5]} 10. Re1 {[%clk 0:03:00]} 10... Nc5 {[%clk 0:03:00.6]} 11. f3
{[%clk 0:02:57.5]} 11... c6 {[%clk 0:02:54.6]} 12. Kh1 {[%clk 0:02:51.2]} 12...
a5 {[%clk 0:02:31.9]} 13. Be3 {[%clk 0:02:49.8]} 13... Nfd7 {[%clk 0:02:20.6]}
14. Nb3 {[%clk 0:02:16.6]} 14... Nxb3 {[%clk 0:02:15.7]} 15. axb3 {[%clk
0:02:12.2]} 15... Qc7 {[%clk 0:01:46.5]} 16. Qc2 {[%clk 0:01:53.8]} 16... Rb8
{[%clk 0:01:30.5]} 17. Rad1 {[%clk 0:01:49.2]} 17... Nc5 {[%clk 0:01:29.4]} 18.
Na4 {[%clk 0:01:43.7]} 18... b6 {[%clk 0:01:25]} 19. Nc3 {[%clk 0:01:18.9]}
19... h5 {[%clk 0:01:20]} 20. h3 {[%clk 0:01:19.4]} 20... Kh7 {[%clk 0:01:12.2]}
21. Ne2 {[%clk 0:01:17.5]} 21... Qe7 {[%clk 0:01:07.1]} 22. Bf2 {[%clk
0:01:16.1]} 22... Be6 {[%clk 0:00:57.2]} 23. Nd4 {[%clk 0:01:15.3]} 23... Bd7
{[%clk 0:00:57.4]} 24. f4 {[%clk 0:01:02.1]} 24... Rbd8 {[%clk 0:00:54.8]} 25.
Re2 {[%clk 0:01:00.4]} 25... Kg8 {[%clk 0:00:55.1]} 26. Rde1 {[%clk 0:00:59.8]}
26... Ne6 {[%clk 0:00:54.3]} 27. Nxe6 {[%clk 0:00:41.9]} 27... Bxe6 {[%clk
0:00:55.2]} 28. Bxb6 {[%clk 0:00:42.3]} 28... Ra8 {[%clk 0:00:52.9]} 29. Ra1
{[%clk 0:00:31.7]} 29... Qb7 {[%clk 0:00:47.5]} 30. Bxa5 {[%clk 0:00:24.5]}
30... Reb8 {[%clk 0:00:45.8]} 31. Ra3 {[%clk 0:00:24.3]} 31... d5 {[%clk
0:00:43.3]} 32. exd5 {[%clk 0:00:21]} 32... cxd5 {[%clk 0:00:44.2]} 33. Qd2
{[%clk 0:00:16.3]} 33... Bf8 {[%clk 0:00:35.1]} 34. b4 {[%clk 0:00:13.5]} 34...
Rxa5 {[%clk 0:00:27.7]} 35. bxa5 {[%clk 0:00:09.8]} 35... Bxa3 {[%clk
0:00:27.8]} 36. bxa3 {[%clk 0:00:10.5]} 36... Qb3 {[%clk 0:00:22.6]} 37. cxd5
{[%clk 0:00:10]} 37... Qxg3 {[%clk 0:00:22.6]} 38. Qe1 {[%clk 0:00:07.5]} 38...
Qd3 {[%clk 0:00:07.3]} 39. dxe6 {[%clk 0:00:07.8]} 39... fxe6 {[%clk 0:00:04.6]}
40. Kh2 {[%clk 0:00:06.9]} 40... Rb1 {[%clk 0:00:04.2]} 41. Qf2 {[%clk
0:00:07.4]} 41... Qa6 {[%clk 0:00:02.4]} 42. Rd2 {[%clk 0:00:04.4]} 42... Kf7
{[%clk 0:00:02.4]} 43. Qg3 {[%clk 0:00:04.9]} 1-0

[Event "Late-Titled-Tuesday-Blitz-January-30-2024"]
[Site "Chess.com"]
[Date "2024.01.30"]
[Round "7"]
[White "FabianoCaruana"]
[Black "K_A_S_T_O_R"]
[Result "0-1"]
[WhiteElo "3035"]
[BlackElo "2928"]
[TimeControl "180+1"]
[EndTime "15:18:07 PST"]
[Termination "K_A_S_T_O_R won by resignation"]

1. e4 {[%clk 0:03:00.9]} 1... c5 {[%clk 0:02:59.8]} 2. Nf3 {[%clk 0:03:00.8]}
2... d6 {[%clk 0:03:00]} 3. d4 {[%clk 0:03:00.7]} 3... cxd4 {[%clk 0:03:00.1]}
4. Nxd4 {[%clk 0:03:01.1]} 4... Nf6 {[%clk 0:03:00.4]} 5. Nc3 {[%clk 0:03:01.5]}
5... a6 {[%clk 0:03:00.5]} 6. Be3 {[%clk 0:03:01.1]} 6... e6 {[%clk 0:02:53.9]}
7. Be2 {[%clk 0:02:59.3]} 7... Qc7 {[%clk 0:02:50.3]} 8. f4 {[%clk 0:02:57.8]}
8... b5 {[%clk 0:02:47.4]} 9. Bf3 {[%clk 0:02:54.5]} 9... Bb7 {[%clk 0:02:47.5]}
10. a3 {[%clk 0:02:43.7]} 10... Nbd7 {[%clk 0:02:47.1]} 11. Qe2 {[%clk
0:02:43.6]} 11... Be7 {[%clk 0:02:38.4]} 12. O-O {[%clk 0:02:39.1]} 12... O-O
{[%clk 0:02:36.7]} 13. Kh1 {[%clk 0:02:39.4]} 13... g6 {[%clk 0:02:21.9]} 14.
Rae1 {[%clk 0:02:34.8]} 14... Nc5 {[%clk 0:02:09.7]} 15. Bg1 {[%clk 0:02:04.6]}
15... e5 {[%clk 0:02:08.2]} 16. fxe5 {[%clk 0:02:04.5]} 16... dxe5 {[%clk
0:02:08.1]} 17. Nb3 {[%clk 0:02:05.1]} 17... Rad8 {[%clk 0:01:55.6]} 18. Rd1
{[%clk 0:02:00.6]} 18... Nxb3 {[%clk 0:01:37.3]} 19. cxb3 {[%clk 0:01:58.8]}
19... Bc5 {[%clk 0:01:37.7]} 20. Bxc5 {[%clk 0:01:48.3]} 20... Qxc5 {[%clk
0:01:37.1]} 21. b4 {[%clk 0:01:48.6]} 21... Qe7 {[%clk 0:01:35.8]} 22. Qe3
{[%clk 0:01:46.9]} 22... Kg7 {[%clk 0:01:34.1]} 23. h3 {[%clk 0:01:44.6]} 23...
h6 {[%clk 0:01:33.3]} 24. Qc5 {[%clk 0:01:41.2]} 24... Rde8 {[%clk 0:01:14.9]}
25. Rd2 {[%clk 0:01:27.6]} 25... Qe6 {[%clk 0:01:03.4]} 26. Rd6 {[%clk
0:01:25.8]} 26... Qe7 {[%clk 0:01:02.1]} 27. Rfd1 {[%clk 0:01:24.4]} 27... Rc8
{[%clk 0:00:54.7]} 28. Qb6 {[%clk 0:01:23.1]} 28... Rb8 {[%clk 0:00:54.2]} 29.
Qa7 {[%clk 0:01:08.5]} 29... Ra8 {[%clk 0:00:52.3]} 30. Qe3 {[%clk 0:01:08.1]}
30... Rac8 {[%clk 0:00:51.2]} 31. Kh2 {[%clk 0:00:58.9]} 31... Rc7 {[%clk
0:00:49.2]} 32. a4 {[%clk 0:00:53.7]} 32... Rc4 {[%clk 0:00:36.4]} 33. axb5
{[%clk 0:00:44.4]} 33... axb5 {[%clk 0:00:36.4]} 34. Qb6 {[%clk 0:00:34.9]}
34... Rxb4 {[%clk 0:00:22.9]} 35. Rxf6 {[%clk 0:00:31.1]} 35... Qxf6 {[%clk
0:00:23]} 36. Qxb7 {[%clk 0:00:31.6]} 36... Qf4+ {[%clk 0:00:20.2]} 37. Kh1
{[%clk 0:00:31.8]} 37... Rxb2 {[%clk 0:00:20.8]} 38. Nd5 {[%clk 0:00:29.3]}
38... Qg5 {[%clk 0:00:19.1]} 39. Qc6 {[%clk 0:00:24.3]} 39... b4 {[%clk
0:00:14.8]} 40. Qc5 {[%clk 0:00:20.4]} 40... Rb8 {[%clk 0:00:13.8]} 41. Qd6
{[%clk 0:00:10.7]} 41... Rc8 {[%clk 0:00:12.6]} 42. Nxb4 {[%clk 0:00:05.7]}
42... Rc3 {[%clk 0:00:11.9]} 43. Rg1 {[%clk 0:00:03.3]} 43... Rxf3 {[%clk
0:00:09.1]} 44. gxf3 {[%clk 0:00:04.2]} 44... Qf4 {[%clk 0:00:09.5]} 45. Rg2
{[%clk 0:00:04.6]} 45... Rb1+ {[%clk 0:00:07.6]} 46. Rg1 {[%clk 0:00:05.1]}
46... Qxf3+ {[%clk 0:00:08.2]} 47. Kh2 {[%clk 0:00:05.7]} 47... Rb2+ {[%clk
0:00:08.5]} 0-1

[Event "Late-Titled-Tuesday-Blitz-January-30-2024"]
[Site "Chess.com"]
[Date "2024.01.30"]
[Round "7"]
[White "a-z30"]
[Black "Viktor_Poddubnyi"]
[Result "1/2-1/2"]
[WhiteElo "2516"]
[BlackElo "2329"]
[TimeControl "180+1"]
[EndTime "15:18:07 PST"]
[Termination "Game drawn by repetition"]

1. d4 {[%clk 0:03:00.9]} 1... g6 {[%clk 0:03:00.5]} 2. e4 {[%clk 0:03:00.4]}
2... Bg7 {[%clk 0:03:01]} 3. Nc3 {[%clk 0:03:01.1]} 3... d6 {[%clk 0:03:01.4]}
4. Nf3 {[%clk 0:03:01.5]} 4... Nf6 {[%clk 0:03:00.8]} 5. Be2 {[%clk 0:03:01.9]}
5... c6 {[%clk 0:03:00]} 6. a4 {[%clk 0:03:00.5]} 6... O-O {[%clk 0:03:00.2]} 7.
O-O {[%clk 0:03:00.7]} 7... Nbd7 {[%clk 0:03:00.6]} 8. h3 {[%clk 0:02:59.4]}
8... e5 {[%clk 0:03:00.6]} 9. Be3 {[%clk 0:02:58.5]} 9... Qe7 {[%clk 0:02:48.4]}
10. dxe5 {[%clk 0:02:52.3]} 10... dxe5 {[%clk 0:02:48.1]} 11. Bc4 {[%clk
0:02:51.1]} 11... Nc5 {[%clk 0:02:28.4]} 12. Nd2 {[%clk 0:02:49.6]} 12... Nh5
{[%clk 0:02:24.9]} 13. Nb3 {[%clk 0:02:00.3]} 13... Ne6 {[%clk 0:02:09]} 14. Qc1
{[%clk 0:01:46.9]} 14... Nd4 {[%clk 0:01:40.8]} 15. Rd1 {[%clk 0:01:43.8]} 15...
Rd8 {[%clk 0:01:40.8]} 16. Bg5 {[%clk 0:01:34.9]} 16... Bf6 {[%clk 0:01:33.9]}
17. Bxf6 {[%clk 0:01:24.8]} 17... Qxf6 {[%clk 0:01:34.8]} 18. Nxd4 {[%clk
0:01:23.8]} 18... exd4 {[%clk 0:01:06.1]} 19. Ne2 {[%clk 0:01:23.2]} 19... Qe5
{[%clk 0:01:05.8]} 20. Bd3 {[%clk 0:00:52.5]} 20... g5 {[%clk 0:00:38.2]} 21. c3
{[%clk 0:00:51.7]} 21... dxc3 {[%clk 0:00:29.2]} 22. Qxc3 {[%clk 0:00:50.8]}
22... Qxc3 {[%clk 0:00:28.8]} 23. Nxc3 {[%clk 0:00:49.5]} 23... Nf4 {[%clk
0:00:26.1]} 24. Bf1 {[%clk 0:00:45.9]} 24... Be6 {[%clk 0:00:25.7]} 25. Kh2
{[%clk 0:00:44]} 25... Kf8 {[%clk 0:00:23.7]} 26. g3 {[%clk 0:00:43.6]} 26...
Ng6 {[%clk 0:00:23.9]} 27. a5 {[%clk 0:00:38.5]} 27... Ke7 {[%clk 0:00:21.6]}
28. Na4 {[%clk 0:00:34.3]} 28... Rxd1 {[%clk 0:00:20.2]} 29. Rxd1 {[%clk
0:00:33.2]} 29... Bb3 {[%clk 0:00:20.2]} 30. Ra1 {[%clk 0:00:32.9]} 30... Bxa4
{[%clk 0:00:18.6]} 31. Rxa4 {[%clk 0:00:32.5]} 31... Rd8 {[%clk 0:00:18.8]} 32.
Rb4 {[%clk 0:00:27.3]} 32... Rd7 {[%clk 0:00:19.1]} 33. Bc4 {[%clk 0:00:26.1]}
33... Ne5 {[%clk 0:00:18.9]} 34. Be2 {[%clk 0:00:25.7]} 34... Kd8 {[%clk
0:00:16.5]} 35. f4 {[%clk 0:00:24.1]} 35... Rd2 {[%clk 0:00:13.1]} 36. fxe5
{[%clk 0:00:18.2]} 36... Rxe2+ {[%clk 0:00:13.4]} 37. Kg1 {[%clk 0:00:18.4]}
37... Kc7 {[%clk 0:00:13.5]} 38. h4 {[%clk 0:00:13.3]} 38... g4 {[%clk
0:00:11.7]} 39. Kf1 {[%clk 0:00:09.8]} 39... Rc2 {[%clk 0:00:09.8]} 40. e6
{[%clk 0:00:09.5]} 40... fxe6 {[%clk 0:00:09.7]} 41. e5 {[%clk 0:00:10.1]} 41...
h5 {[%clk 0:00:10]} 42. Rf4 {[%clk 0:00:09.3]} 42... Rc5 {[%clk 0:00:08.4]} 43.
Rf7+ {[%clk 0:00:08.5]} 43... Kc8 {[%clk 0:00:08.3]} 44. Rf8+ {[%clk 0:00:08.2]}
44... Kc7 {[%clk 0:00:08.4]} 45. Rf7+ {[%clk 0:00:08.5]} 45... Kc8 {[%clk
0:00:07.5]} 46. Rf8+ {[%clk 0:00:07.2]} 46... Kc7 {[%clk 0:00:04.9]} 47. Rf7+
{[%clk 0:00:05.7]} 1/2-1/2